fUST/lending_fUST_20241124
["ID","MTS","AMOUNT","RATE_DAILY","PERIOD"]
[343180512,1732415441685,-382.337378,0.00027606,7]
[343180513,1732415441694,-3205.33238488,0.00027606,2]
[343180514,1732415441704,-84690.46231391,0.00027606,2]
[343180548,1732416026987,200.0,0.00028,120]
[343180549,1732416068071,300.9,0.00028,120]
[343180556,1732416553354,256.372467,0.00028805,120]
[343180557,1732416553668,767.5,0.00028805,120]
[343180561,1732416595440,1227.04,0.00028805,120]
[343180562,1732416595766,921.31,0.00028805,120]
[343180563,1732416596065,690.51767,0.00028805,120]
[343180564,1732416596368,518.37,0.00028805,120]
[343180565,1732416596670,388.43246,0.00028805,120]
[343180566,1732416596973,292.0,0.00028805,120]
[343180567,1732416597294,872.5,0.00028805,120]
[343180586,1732416633002,-168.116713,0.00013973,2]
[343180587,1732416633013,-168.116713,0.00020447,2]
[343180588,1732416633022,-1993.9925501,0.00025163,2]
[343180589,1732416633031,-164.891211,0.00025434,2]
[343180590,1732416633041,-500.27104202,0.00025516,2]
[343180591,1732416633050,-300.0,0.00025902,2]
[343180592,1732416633060,-11533.76058548,0.00025903,2]
[343180594,1732416639050,-1241.18431965,0.00025903,2]
[343180595,1732416639063,-12125.05509487,0.00025903,2]
[343180596,1732416639073,-500.0,0.0002642,2]
[343180597,1732416639083,-500.0,0.0002642,2]
[343180598,1732416639092,-158.46554582,0.0002642,2]
[343180600,1732416639103,-159.684,0.00026421,13]
[343180601,1732416639112,-168.116713,0.00026921,2]
[343180602,1732416639121,-311.64832308,0.00027148,2]
[343180603,1732416639131,-5365.45483051,0.00027154,2]
[343180604,1732416639141,-307.9084188,0.00027342,2]
[343180605,1732416639150,-607.31999653,0.00027479,2]
[343180606,1732416639159,-500.0,0.00027479,2]
[343180607,1732416639169,-523.8857075,0.00027479,2]
[343180608,1732416639179,-314.8924577,0.00027479,30]
[343180609,1732416639189,-315.2594201,0.00027479,30]
[343180610,1732416639199,-154.8792883,0.00027479,30]
[343180611,1732416639209,-189.0588484,0.00027479,30]
[343180612,1732416639218,-212.6978082,0.00027479,30]
[343180613,1732416639227,-212.6978082,0.00027479,30]
[343180614,1732416639237,-304.6759866,0.00027479,30]
[343180615,1732416639247,-212.6978082,0.00027479,30]
[343180616,1732416639256,-212.6978082,0.00027479,30]
[343180617,1732416639266,-304.6759866,0.00027479,30]
[343180618,1732416639276,-212.6978082,0.00027479,30]
[343180619,1732416639285,-212.6978082,0.00027479,30]
[343180621,1732416639295,-304.6759866,0.00027479,30]
[343180623,1732416639305,-212.6978082,0.00027479,30]
[343180624,1732416639315,-304.6759866,0.00027479,30]
[343180625,1732416639325,-304.6759866,0.00027479,30]
[343180626,1732416639334,-304.6759866,0.00027479,30]
[343180627,1732416639344,-304.6759866,0.00027479,30]
[343180628,1732416639353,-304.6759866,0.00027479,30]
[343180629,1732416639363,-1401.83235012,0.00027496,10]
[343180633,1732416640846,-1235.60764988,0.00027496,10]
[343180634,1732416640857,-2197.86,0.00027496,10]
[343180635,1732416640867,-1831.55,0.00027496,10]
[343180636,1732416640876,-277.25209004,0.00027504,2]
[343180638,1732416640885,-286.03153365,0.00027505,2]
[343180640,1732416640895,-500.0,0.00027505,2]
[343180641,1732416640905,-350.57108214,0.00027505,2]
[343180642,1732416640915,-500.0,0.00027505,2]
[343180644,1732416640925,-338.47160672,0.00027505,2]
[343180645,1732416640935,-389.88534133,0.00027505,2]
[343180646,1732416640944,-151.0,0.00027506,7]
[343180647,1732416640954,-5153.19723772,0.00027506,2]
[343180648,1732416640963,-1854.9431652,0.00027506,2]
[343180649,1732416640975,-7232.48297435,0.00027506,2]
[343180667,1732416645145,-2745.4002195,0.00027506,2]
[343180672,1732416693247,500.0,0.00028805,120]
[343180673,1732416693546,375.78,0.00028805,120]
[343180674,1732416693919,281.25,0.00028805,120]
[343180675,1732416695041,281.31178,0.00028805,120]
[343180676,1732416704059,561.5,0.00028805,120]
[343180678,1732416750551,1000.48412,0.00028805,120]
[343180679,1732416750867,750.9209,0.00028805,120]
[343180680,1732416784649,812.58055,0.00028805,120]
[343180681,1732416784970,609.46,0.00028805,120]
[343180682,1732416785290,456.5,0.00028805,120]
[343180683,1732416785866,457.0,0.00028805,120]
[343180684,1732416786184,342.38,0.00028805,120]
[343180685,1732416786496,257.134,0.00028805,120]
[343180690,1732416801568,313.5,0.00028805,120]
[343180691,1732416816265,500.388,0.00028805,120]
[343180692,1732416816675,626.0,0.00028805,120]
[343180693,1732416816976,468.007454,0.00028805,120]
[343180694,1732416817432,351.554496,0.00028805,120]
[343180695,1732416817730,263.22,0.00028805,120]
[343180696,1732416818033,791.5,0.00028805,120]
[343180697,1732416847986,251.0,0.00028805,120]
[343180698,1732416848419,748.5,0.00028805,120]
[343180701,1732416972411,251.25,0.00028162,60]
[343180708,1732417606202,-158.776895,0.00013833,2]
[343180709,1732417606224,-76.9753186,0.00013973,2]
[343180749,1732417832500,-81.8015764,0.00013973,2]
[343180750,1732417832511,-158.776895,0.00021209,2]
[343180751,1732417832521,-936.83085345,0.00025919,2]
[343180756,1732417838549,-360.27524655,0.00025919,2]
[343180757,1732417838559,-2018.0,0.00027,2]
[343180758,1732417838568,-564.53069945,0.000272,2]
[343180759,1732417840136,-1435.46930055,0.000272,2]
[343180762,1732417840146,-300.0,0.00027204,2]
[343180764,1732417840156,-300.0,0.00027204,2]
[343180765,1732417840166,-4001.74883069,0.0002728,2]
[343180766,1732417840177,-5312.54390962,0.00027306,2]
[343180767,1732417840187,-2181.01,0.00027396,10]
[343180768,1732417840197,-1817.51,0.00027396,10]
[343180769,1732417840207,-773.64,0.00027396,3]
[343180770,1732417840218,-1514.59,0.00027396,10]
[343180771,1732417840228,-2000.0,0.000274,2]
[343180772,1732417840238,-159.684,0.00027406,16]
[343180773,1732417840249,-500.0,0.00027406,2]
[343180774,1732417840258,-512.96031217,0.00027406,2]
[343180775,1732417840269,-569.86780568,0.00027406,2]
[343180776,1732417840280,-256.01245054,0.00027406,2]
[343180777,1732417840290,-184.26654081,0.00027406,2]
[343180778,1732417840300,-500.0,0.00027406,2]
[343180779,1732417840310,-485.10347653,0.00027406,2]
[343180780,1732417840319,-173991.64199309,0.00027406,2]
[343180813,1732417844544,-14009.46751112,0.00027406,2]
[343180815,1732417844556,-3102.67709397,0.00027406,2]
[343180817,1732417844566,-500.0,0.00027506,2]
[343180819,1732417844575,-500.0,0.00027506,7]
[343180820,1732417844585,-349.21250136,0.00027506,2]
[343180821,1732417844595,-500.0,0.00027506,2]
[343180822,1732417844604,-517.17386438,0.00027506,2]
[343180823,1732417844614,-500.81079007,0.00027506,2]
[343180824,1732417844623,-566.9209662,0.00027506,2]
[343180825,1732417844632,-250.40764344,0.00027506,2]
[343180826,1732417844642,-500.46320747,0.00027506,2]
[343180827,1732417844651,-500.60475602,0.00027506,2]
[343180828,1732417844660,-500.60131174,0.00027506,2]
[343180829,1732417844669,-500.54009319,0.00027506,2]
[343180830,1732417844679,-506.02685587,0.00027506,2]
[343180831,1732417844689,-415.57712338,0.00027506,2]
[343180832,1732417844699,-501.99434805,0.00027506,2]
[343180833,1732417844708,-501.0725867,0.00027506,2]
[343180834,1732417844717,-504.7909356,0.00027506,2]
[343180835,1732417844726,-500.0,0.00027506,2]
[343180836,1732417844735,-335.39662144,0.00027506,2]
[343180837,1732417844745,-509.08614862,0.00027506,2]
[343180838,1732417844754,-500.0,0.00027506,2]
[343180839,1732417844763,-500.0,0.00027506,2]
[343180840,1732417844772,-519.37998909,0.00027506,2]
[343180841,1732417844782,-245.36357519,0.00027506,2]
[343180842,1732417844791,-506.38940702,0.00027506,2]
[343180843,1732417844801,-502.81680725,0.00027506,2]
[343180844,1732417844811,-524.52434839,0.00027506,2]
[343180845,1732417844824,-512.64847002,0.00027506,2]
[343180846,1732417844834,-500.0,0.00027506,2]
[343180847,1732417844844,-502.30952588,0.00027506,2]
[343180848,1732417844853,-501.32105648,0.00027506,2]
[343180849,1732417844865,-501.12603002,0.00027506,2]
[343180850,1732417844876,-506.4617864,0.00027506,2]
[343180851,1732417844886,-546.13648654,0.00027506,2]
[343180852,1732417844896,-523.06584857,0.00027506,2]
[343180853,1732417844906,-503.145652,0.00027506,2]
[343180854,1732417844915,-251.48447753,0.00027506,2]
[343180855,1732417844927,-253.90778565,0.00027506,2]
[343180856,1732417844943,-548.7842432,0.00027506,2]
[343180857,1732417844952,-513.94074858,0.00027506,2]
[343180858,1732417844962,-504.03447478,0.00027506,2]
[343180859,1732417844971,-532.75323276,0.00027506,2]
[343180860,1732417844981,-505.26679686,0.00027506,2]
[343180861,1732417844991,-500.84011006,0.00027506,2]
[343180862,1732417845000,-505.37212929,0.00027506,2]
[343180863,1732417845010,-504.55716376,0.00027506,2]
[343180864,1732417845019,-332.61835251,0.00027506,2]
[343180865,1732417845031,-197.2417706,0.00027506,2]
[343180866,1732417845041,-500.70711243,0.00027506,2]
[343180867,1732417845050,-501.29267366,0.00027506,2]
[343180868,1732417845060,-500.41751633,0.00027506,2]
[343180869,1732417845070,-501.93758609,0.00027506,2]
[343180870,1732417845079,-503.05493035,0.00027506,2]
[343180871,1732417845088,-501.99976353,0.00027506,2]
[343180872,1732417845098,-500.0,0.00027506,2]
[343180873,1732417845108,-505.4064663,0.00027506,2]
[343180874,1732417845117,-501.04550085,0.00027506,2]
[343180875,1732417845126,-503.67015535,0.00027506,2]
[343180876,1732417845136,-504.28930803,0.00027506,2]
[343180877,1732417845144,-514.4515801,0.00027506,2]
[343180878,1732417845154,-500.0,0.00027506,2]
[343180879,1732417845163,-506.93553903,0.00027506,2]
[343180880,1732417845173,-502.21588089,0.00027506,2]
[343180881,1732417845184,-507.72208987,0.00027506,2]
[343180882,1732417845193,-508.15634637,0.00027506,2]
[343180883,1732417845202,-509.31438302,0.00027506,2]
[343180884,1732417845212,-501.11141688,0.00027506,2]
[343180885,1732417845222,-500.85297699,0.00027506,2]
[343180886,1732417845231,-501.49864286,0.00027506,2]
[343180887,1732417845240,-1304.66544231,0.00027605,2]
[343180888,1732417845249,-256.01245051,0.00027605,2]
[343180889,1732417845258,-411.61086272,0.00027643,7]
[343180890,1732417845268,-214.62149383,0.0002768,2]
[343180891,1732417845278,-500.0,0.0002768,2]
[343180892,1732417845288,-500.0,0.00027779,2]
[343180893,1732417845298,-563.93436931,0.00027779,2]
[343180894,1732417845307,-268.40431094,0.00027779,2]
[343180895,1732417845318,-178.46792166,0.00027779,2]
[343180896,1732417845328,-503.02941626,0.00027779,2]
[343180897,1732417845337,-200.22207356,0.00027799,2]
[343180898,1732417845346,-221.43190623,0.00027799,2]
[343180899,1732417845355,-305.0,0.000278,2]
[343180900,1732417845365,-256.01245051,0.00027804,2]
[343180901,1732417845374,-500.0,0.00027953,2]
[343180902,1732417845384,-5019.94195287,0.0002799,2]
[343180903,1732417845393,-12113.97788015,0.00028,7]
[343180912,1732417846078,-453.0,0.00028,7]
[343180949,1732419032378,-164.427621,0.00013973,2]
[343180950,1732419032389,-200.53035098,0.000199,3]
[343180951,1732419032400,-152.13225934,0.0002,7]
[343180952,1732419032410,-164.427621,0.00020447,2]
[343180953,1732419032420,-883.43134099,0.0002066,7]
[343180954,1732419032431,-2001.44460517,0.00023852,2]
[343180955,1732419032441,-300.0,0.00024221,2]
[343180956,1732419032451,-300.0,0.00024221,2]
[343180957,1732419032461,-24900.0,0.00024222,2]
[343180958,1732419032472,-1156.4485986,0.00024365,2]
[343180959,1732419032483,-1157.34750879,0.00024528,2]
[343180960,1732419032494,-532.062,0.00024629,2]
[343180961,1732419032505,-1109.415,0.00024629,2]
[343180962,1732419032515,-2389.42,0.00024629,2]
[343180963,1732419032525,-2181.01,0.0002499,10]
[343180964,1732419032536,-1817.51,0.0002499,10]
[343180965,1732419032546,-1514.59,0.0002499,10]
[343180966,1732419032556,-560.30057273,0.00025,2]
[343180967,1732419032566,-7818.5025214,0.00025,2]
[343180979,1732419038658,-1262.16,0.0002499,10]
[343180980,1732419038669,-155.00233436,0.00024999,2]
[343180981,1732419038678,-28038.54808583,0.00025,2]
[343181151,1732419043545,-75773.34152827,0.00025,2]
[343181152,1732419043557,-2547.28325568,0.00025,2]
[343181153,1732419043568,-3240.86375861,0.00025,2]
[343181154,1732419043579,-4660.72163998,0.00025,2]
[343181155,1732419043753,-22579.3493466,0.00025,2]
[343181187,1732419067950,937.0,0.000288,120]
[343181212,1732420186145,-164.427621,0.00013973,2]
[343181236,1732420232476,-164.427621,0.00021209,2]
[343181238,1732420232489,-164.719638,0.00022792,2]
[343181241,1732420232504,-967.87079057,0.00023196,2]
[343181293,1732420238754,-267.08017194,0.00023196,2]
[343181312,1732420252894,164.427621,0.00013973,2]
[343181314,1732420320617,3026.15766765,0.000288,120]
[343181323,1732421033269,164.427621,0.00013973,2]
[343181324,1732421193128,-235.7522136,0.00016607,2]
[343181354,1732421432358,-500.0,0.00016775,2]
[343181355,1732421432368,-500.0,0.00017657,2]
[343181357,1732421432378,-441.37930742,0.00018587,2]
[343181362,1732421432411,-58.62069258,0.00018587,2]
[343181364,1732421432421,-491.54847647,0.00019565,2]
[343181630,1732421435290,-8.45152353,0.00019565,2]
[343181632,1732421435300,-250.0,0.00019677,2]
[343181634,1732421435310,-169.333306,0.00019692,2]
[343181637,1732421435320,-300.0,0.00019775,2]
[343181638,1732421435329,-300.0,0.00019775,2]
[343181640,1732421435339,-7835.224326,0.00019776,2]
[343181643,1732421435348,-169.333306,0.00020377,2]
[343181645,1732421435358,-500.0,0.00020543,2]
[343181647,1732421435367,-388.88940691,0.00021,2]
[343182473,1732421443545,-2611.11059309,0.00021,2]
[343182475,1732421443555,-2230.09428964,0.0002101,2]
[343182477,1732421443567,-769.90571036,0.0002101,2]
[343182479,1732421443576,-643.10151038,0.0002102,2]
[343185638,1732421732910,158.790251,0.00013973,2]
[343185642,1732422423202,158.790251,0.00013973,2]
[343185646,1732422526670,11720.63807861,0.000109,2]
[343185724,1732422632508,-195.36386832,0.00015699,2]
[343185725,1732422632518,-198.75978343,0.00016675,2]
[343185726,1732422632528,-1144.7071517,0.00017,2]
[343185771,1732422643709,-855.2928483,0.00017,2]
[343185772,1732422643719,-257.5914391,0.00017148,2]
[343185773,1732422643729,-1363.757115,0.00017232,2]
[343185774,1732422643739,-204.1006065,0.00017273,2]
[343185775,1732422643749,-161.9099905,0.00017442,2]
[343185776,1732422643758,-821.253451,0.00017698,2]
[343185778,1732422643768,-19903.45489673,0.00017938,2]
[343185779,1732422643785,-4996.54510327,0.00017938,2]
[343185780,1732422643795,-821.253451,0.00018383,2]
[343185781,1732422643804,-148.91543967,0.000185,2]
[343185783,1732422646492,-458.0548046,0.000185,2]
[343185790,1732423080166,158.790251,0.00013973,2]
[343185862,1732423748421,215.0,0.00028,120]
[343185941,1732423832894,-421.251653,0.00017097,2]
[343185943,1732423832904,-273.75115,0.00017387,2]
[343185945,1732423832914,-214.4437086,0.0001749,2]
[343186545,1732423838924,-85.5562914,0.0001749,2]
[343186547,1732423838933,-300.0,0.0001749,2]
[343186549,1732423838943,-3065.9436884,0.00017491,2]
[343186554,1732423838979,-3664.133895,0.00017491,2]
[343186713,1732423840631,-319.34,0.00017491,2]
[343187108,1732423844503,-1960.0,0.00017491,2]
[343187110,1732423844519,-8687.35325253,0.00017491,2]
[343187116,1732423844562,-3288.36866847,0.00017491,2]
[343187118,1732423844571,-1089.25874412,0.00017811,2]
[343187120,1732423844581,-373.53371516,0.0001782,2]
[343187134,1732423844666,-24900.0,0.0001782,2]
[343187137,1732423844700,-1031.80193206,0.00017972,2]
[343187139,1732423844710,-273.75115,0.00018072,2]
[343187141,1732423844719,-195.02434225,0.00018333,2]
[343187143,1732423844733,-8003.40780783,0.00018349,2]
[343189772,1732423874167,157.764268,0.00013973,2]
[343189789,1732424569979,157.764268,0.00013973,2]
[343189794,1732424793213,-235.7522136,0.00016697,2]
[343189810,1732425032137,-235.7522136,0.0001602,2]
[343189811,1732425032147,-300.0,0.00016182,2]
[343189812,1732425032158,-300.0,0.00016182,2]
[343189813,1732425032168,-583.94507697,0.00016183,2]
[343189841,1732425038022,-24316.05492303,0.00016183,2]
[343189842,1732425038032,-499.0253167,0.00016345,2]
[343189843,1732425038042,-2150.900183,0.00016374,2]
[343189844,1732425038052,-372.562894,0.00016554,2]
[343189845,1732425038061,-1.3048886,0.00016697,2]
[343189846,1732425038070,-485.74682437,0.00016883,2]
[343189847,1732425038080,-6303.3417955,0.00016883,2]
[343189872,1732425043204,-15524.4891,0.00016883,2]
[343189873,1732425043214,-902.82669057,0.00016959,2]
[343189874,1732425043224,-2150.900183,0.00017059,2]
[343189875,1732425043234,-444.0088301,0.0001706,2]
[343189876,1732425043243,-420.0,0.0001769,2]
[343189877,1732425043260,-456.97155155,0.00017744,2]
[343189907,1732425045874,-1693.92863145,0.00017744,2]
[343189908,1732425045885,-420.0,0.00017801,2]
[343189909,1732425045896,-151.387461,0.00017967,2]
[343189910,1732425045907,-151.0,0.00017967,2]
[343189911,1732425045917,-157.548977,0.00017967,2]
[343189912,1732425045927,-151.0,0.00017967,2]
[343189913,1732425045936,-151.0,0.00017967,2]
[343189914,1732425045947,-151.0,0.00017967,2]
[343189916,1732425045961,-151.301605,0.00017967,2]
[343189917,1732425045970,-151.0,0.00017967,2]
[343189918,1732425045980,-151.0,0.00017967,2]
[343189919,1732425045989,-151.0,0.0001797,2]
[343189920,1732425046002,-151.0,0.0001797,2]
[343189921,1732425046011,-137.53566515,0.0001801,2]
[343189924,1732425405046,157.764268,0.00013973,2]
[343189934,1732426058975,157.764268,0.00013973,2]
[343190000,1732426232059,-974.30548358,0.0001755,2]
[343190093,1732426238248,-561.75506814,0.0001755,2]
[343190094,1732426238369,-1821.4824315,0.0001755,2]
[343190095,1732426238384,-3264.57581138,0.0001755,2]
[343190096,1732426238393,-300.0,0.00018025,2]
[343190097,1732426238403,-300.0,0.00018025,2]
[343190098,1732426238412,-292.47894109,0.00018026,2]
[343190163,1732426246055,-4869.07551144,0.00018026,2]
[343190164,1732426246118,-14106.87941706,0.00018026,2]
[343190166,1732426571709,169.26,0.0002199,30]
[343190171,1732426950250,170.457867,0.00013973,2]
[343190195,1732427436057,-300.0,0.00017284,2]
[343190196,1732427436069,-163.0,0.00017284,2]
[343190197,1732427436082,-2560.10880517,0.00017285,2]
[343190198,1732427436116,-858.05407349,0.00017285,2]
[343190228,1732427443126,-18329.9714721,0.00017285,2]
[343190230,1732427443184,-3151.86564924,0.00017285,2]
[343190231,1732427443195,-789.97335424,0.00017655,2]
[343190232,1732427443206,-310.0016901,0.00017662,2]
[343190233,1732427443218,-1009.97912566,0.00017748,2]
[343190253,1732427443662,-2612.22558665,0.00017748,2]
[343190369,1732427903630,169.484453,0.00013973,2]
[343190372,1732428411139,-190.307427,0.00016357,2]
[343190373,1732428411165,-45.4447866,0.00016514,2]
[343190385,1732428618659,169.06305,0.00013973,2]
[343190406,1732428632544,-235.7522136,0.00016295,2]
[343190407,1732428632556,-1507.7214923,0.00016514,2]
[343190408,1732428632566,-250.0,0.00016847,2]
[343190409,1732428632576,-743.83780823,0.00017084,2]
[343190410,1732428632586,-446.13690061,0.00017184,2]
[343190411,1732428632596,-300.0,0.00017279,2]
[343190412,1732428632606,-300.0,0.00017279,2]
[343190413,1732428632615,-19628.30326013,0.0001728,2]
[343190427,1732428638532,-5271.69673987,0.0001728,2]
[343190428,1732428638542,-5891.52614772,0.00017284,2]
[343190429,1732428638552,-691.22668496,0.00017712,2]
[343190430,1732428638562,-169.463387,0.00017812,2]
[343190431,1732428638571,-169.463387,0.0001782,2]
[343190432,1732428638582,-169.463387,0.00017828,2]
[343190433,1732428638592,-169.463387,0.00017836,2]
[343190434,1732428638602,-169.463387,0.00017844,2]
[343190435,1732428638612,-169.463387,0.00017852,2]
[343190436,1732428638622,-169.463387,0.00017861,2]
[343190437,1732428638631,-169.463387,0.00017869,2]
[343190438,1732428638641,-169.463387,0.00017877,2]
[343190439,1732428638650,-169.463387,0.00017885,2]
[343190440,1732428638660,-169.463387,0.00017893,2]
[343190441,1732428638670,-169.463387,0.00017901,2]
[343190442,1732428638680,-1696.36730893,0.00018025,2]
[343190443,1732428638689,-1893.02975573,0.000185,2]
[343190444,1732428638700,-491.43842844,0.000185,2]
[343190445,1732428638709,-420.0,0.00018867,2]
[343190446,1732428638719,-2000.0,0.00019,2]
[343190447,1732428638729,-420.0,0.00019007,2]
[343190448,1732428638738,-373.00617412,0.00019078,2]
[343190449,1732428638749,-610.71,0.00019162,3]
[343190450,1732428638759,-305.36,0.00019162,3]
[343190451,1732428638769,-152.68,0.00019162,3]
[343190453,1732428638778,-458.06,0.00019162,3]
[343190454,1732428638788,-151.0,0.00019171,2]
[343190455,1732428638798,-151.321706,0.00019171,2]
[343190456,1732428638807,-151.0,0.00019171,2]
[343190457,1732428638817,-151.777201,0.00019171,2]
[343190458,1732428638826,-500.0,0.00019171,2]
[343190459,1732428638836,-500.0,0.00019171,2]
[343190460,1732428638846,-500.0,0.00019171,2]
[343190461,1732428638856,-500.0,0.00019171,2]
[343190462,1732428638865,-500.0,0.00019171,2]
[343190463,1732428638874,-500.0,0.00019171,2]
[343190464,1732428638884,-500.0,0.00019171,2]
[343190465,1732428638894,-500.0,0.00019171,2]
[343190466,1732428638903,-500.0,0.00019171,2]
[343190467,1732428638912,-500.0,0.00019171,2]
[343190468,1732428638922,-500.0,0.00019171,2]
[343190469,1732428638932,-500.0,0.00019171,2]
[343190470,1732428638941,-500.0,0.00019171,2]
[343190471,1732428638951,-500.0,0.00019171,2]
[343190472,1732428638961,-500.0,0.00019171,2]
[343190473,1732428638971,-593.17227467,0.00019171,2]
[343190474,1732428638981,-500.0,0.00019171,2]
[343190475,1732428638990,-500.0,0.00019171,2]
[343190476,1732428639000,-500.0,0.00019171,2]
[343190477,1732428639010,-500.0,0.00019171,2]
[343190478,1732428639021,-500.0,0.00019171,2]
[343190479,1732428639030,-500.0,0.00019171,2]
[343190480,1732428639041,-500.0,0.00019171,2]
[343190481,1732428639054,-500.0,0.00019171,2]
[343190482,1732428639063,-500.0,0.00019171,2]
[343190483,1732428639073,-500.0,0.00019171,2]
[343190484,1732428639085,-500.0,0.00019171,2]
[343190485,1732428639094,-467.23892958,0.00019171,2]
[343190486,1732428639103,-412.42993934,0.00019171,2]
[343190487,1732428639113,-500.0,0.00019171,2]
[343190488,1732428639123,-500.0,0.00019171,2]
[343190489,1732428639134,-495.17928687,0.00019171,2]
[343190503,1732428644240,-1357.09384714,0.0001917,2]
[343190504,1732428644252,-4.82071313,0.00019171,2]
[343190505,1732428644262,-500.0,0.00019171,2]
[343190506,1732428644272,-500.0,0.00019171,2]
[343190507,1732428644282,-500.0,0.00019171,2]
[343190508,1732428644292,-500.0,0.00019171,2]
[343190509,1732428644302,-83.13822475,0.00019171,2]
[343190530,1732428644542,-416.86177525,0.00019171,2]
[343190531,1732428644552,-500.0,0.00019171,2]
[343190532,1732428644562,-500.0,0.00019171,2]
[343190533,1732428644573,-500.0,0.00019171,2]
[343190534,1732428644583,-500.0,0.00019171,2]
[343190535,1732428644592,-500.0,0.00019171,2]
[343190536,1732428644602,-500.0,0.00019171,2]
[343190537,1732428644612,-500.0,0.00019171,2]
[343190538,1732428644623,-500.0,0.00019171,2]
[343190539,1732428644632,-359.08766986,0.00019171,2]
[343190540,1732428644642,-471.04161797,0.00019171,2]
[343190541,1732428644652,-500.0,0.00019171,2]
[343190542,1732428644663,-500.0,0.00019171,2]
[343190543,1732428644674,-500.0,0.00019171,2]
[343190544,1732428644683,-500.0,0.00019171,2]
[343190545,1732428644693,-500.0,0.00019171,2]
[343190546,1732428644701,-469.76596692,0.00019171,2]
[343190547,1732428644712,-30.23403308,0.00019171,2]
[343190548,1732428644722,-500.0,0.00019171,2]
[343190549,1732428644732,-500.0,0.00019171,2]
[343190550,1732428644744,-500.0,0.00019171,2]
[343190551,1732428644753,-500.0,0.00019171,2]
[343190552,1732428644763,-500.0,0.00019171,2]
[343190553,1732428644773,-500.0,0.00019171,2]
[343190554,1732428644783,-500.0,0.00019171,2]
[343190555,1732428644792,-500.0,0.00019171,2]
[343190556,1732428644802,-500.0,0.00019171,2]
[343190557,1732428644812,-500.0,0.00019171,2]
[343190558,1732428644943,-500.0,0.00019171,2]
[343190559,1732428644953,-376.92705318,0.00019171,2]
[343190560,1732428644963,-500.0,0.00019171,2]
[343190561,1732428644972,-500.0,0.00019171,2]
[343190562,1732428644982,-500.0,0.00019171,2]
[343190563,1732428645003,-500.0,0.00019171,2]
[343190564,1732428645013,-500.0,0.00019171,2]
[343190565,1732428645023,-500.0,0.00019171,2]
[343190566,1732428645032,-500.0,0.00019171,2]
[343190567,1732428645043,-500.0,0.00019171,2]
[343190568,1732428645055,-461.65105348,0.00019171,2]
[343190569,1732428646523,-38.34894652,0.00019171,2]
[343190570,1732428646534,-500.0,0.00019171,2]
[343190571,1732428646543,-500.0,0.00019171,2]
[343190572,1732428646553,-500.0,0.00019171,2]
[343190573,1732428646564,-500.0,0.00019171,2]
[343190574,1732428646574,-500.0,0.00019171,2]
[343190575,1732428646584,-500.0,0.00019171,2]
[343190577,1732428646593,-500.0,0.00019171,2]
[343190578,1732428646603,-500.0,0.00019171,2]
[343190579,1732428646613,-500.0,0.00019171,2]
[343190580,1732428646623,-338.15300424,0.00019171,2]
[343190581,1732428646634,-500.0,0.00019171,2]
[343190582,1732428646645,-500.0,0.00019171,2]
[343190583,1732428646655,-500.0,0.00019171,2]
[343190584,1732428646665,-500.0,0.00019171,2]
[343190585,1732428646675,-500.0,0.00019171,2]
[343190586,1732428646685,-500.0,0.00019171,2]
[343190587,1732428646695,-500.0,0.00019171,2]
[343190588,1732428646704,-500.0,0.00019171,2]
[343190589,1732428646714,-500.0,0.00019171,2]
[343190590,1732428646724,-500.0,0.00019171,2]
[343190591,1732428646734,-500.0,0.00019171,2]
[343190592,1732428646744,-500.0,0.00019171,2]